[Event "FIDE World Rapid Chess Championship 2021"]
[White "Fridman, Daniel"]
[Black "Sarana, Alexey"]
[WhiteFideId "11600454"]
[BlackFideId "24133795"]
[WhiteElo "2542"]
[BlackElo "2680"]
[Result "1/2-1/2"]
[Round "09"]
[TimeControl "900+10"]
[Date "2021.12.27"]
[WhiteClock "0:00:43"]
[BlackClock "0:00:09"]

1. d4 {[%clk 0:15:00]}  Nf6 {[%clk 0:15:00]} 2. Nf3 {[%clk 0:15:00]}  g6 {[%clk 0:15:00]} 3. c4 {[%clk 0:15:00]}  Bg7 {[%clk 0:15:00]} 4. g3 {[%clk 0:15:00]}  c6 {[%clk 0:15:00]} 5. Bg2 {[%clk 0:15:00]}  d5 {[%clk 0:15:00]} 6. cxd5 {[%clk 0:15:00]}  cxd5 {[%clk 0:15:00]} 7. Nc3 {[%clk 0:15:00]}  O-O {[%clk 0:15:00]} 8. Ne5 {[%clk 0:15:00]}  e6 {[%clk 0:15:00]} 9. O-O {[%clk 0:15:00]}  Nfd7 {[%clk 0:15:00]} 10. e4 {[%clk 0:15:00]}  Nxe5 {[%clk 0:15:00]} 11. dxe5 {[%clk 0:15:00]}  d4 {[%clk 0:15:00]} 12. Nb5 {[%clk 0:15:00]}  d3 {[%clk 0:14:41]} 13. Kh1 {[%clk 0:16:40]}  Qd7 {[%clk 0:14:41]} 14. a4 {[%clk 0:16:40]}  a6 {[%clk 0:14:30]} 15. Nd6 {[%clk 0:11:45]}  Bxe5 {[%clk 0:14:30]} 16. Nc4 {[%clk 0:11:45]}  Bc7 {[%clk 0:14:30]} 17. Ra3 {[%clk 0:11:45]}  Nc6 {[%clk 0:14:30]} 18. Rxd3 {[%clk 0:11:45]}  Qe7 {[%clk 0:14:30]} 19. Bh6 {[%clk 0:11:14]}  Rd8 {[%clk 0:13:16]} 20. Rxd8+ {[%clk 0:11:14]}  Nxd8 {[%clk 0:13:16]} 21. e5 {[%clk 0:09:40]}  Bd7 {[%clk 0:12:51]} 22. Bg5 {[%clk 0:06:42]}  Qe8 {[%clk 0:12:51]} 23. b3 {[%clk 0:05:47]}  Bc6 {[%clk 0:11:41]} 24. Nd6 {[%clk 0:05:47]}  Bxg2+ {[%clk 0:11:49]} 25. Kxg2 {[%clk 0:02:25]}  Qc6+ {[%clk 0:11:49]} 26. Kg1 {[%clk 0:02:25]}  Qc3 {[%clk 0:06:05]} 27. Ne4 {[%clk 0:02:42]}  Qxe5 {[%clk 0:06:05]} 28. Nf6+ {[%clk 0:02:42]}  Kh8 {[%clk 0:06:05]} 29. h4 {[%clk 0:00:35]}  Bb6 {[%clk 0:06:02]} 30. Kh2 {[%clk 0:00:35]}  Nc6 {[%clk 0:06:02]} 31. Nd7 {[%clk 0:00:33]}  Qc7 {[%clk 0:04:50]} 32. Bf6+ {[%clk 0:00:33]}  Kg8 {[%clk 0:04:50]} 33. Qd2 {[%clk 0:00:33]}  Nd4 {[%clk 0:04:50]} 34. Qh6 {[%clk 0:00:33]}  Nf5 {[%clk 0:04:50]} 35. Qd2 {[%clk 0:00:33]}  Bd4 {[%clk 0:04:50]} 36. Bxd4 {[%clk 0:00:33]}  Qxd7 {[%clk 0:03:10]} 37. Bc3 {[%clk 0:00:36]}  Qxd2 {[%clk 0:03:10]} 38. Bxd2 {[%clk 0:00:36]}  Rc8 {[%clk 0:03:10]} 39. Bg5 {[%clk 0:00:36]}  Nd4 {[%clk 0:03:10]} 40. Bf6 {[%clk 0:00:36]}  Nxb3 {[%clk 0:03:10]} 41. Rb1 {[%clk 0:00:36]}  Na5 {[%clk 0:03:10]} 42. Rd1 {[%clk 0:00:36]}  Nc4 {[%clk 0:03:10]} 43. Rd7 {[%clk 0:00:36]}  b5 {[%clk 0:03:10]} 44. axb5 {[%clk 0:00:36]}  axb5 {[%clk 0:03:10]} 45. Rb7 {[%clk 0:00:36]}  Nd6 {[%clk 0:03:10]} 46. Rb6 {[%clk 0:00:36]}  Ne4 {[%clk 0:03:10]} 47. Bd4 {[%clk 0:00:36]}  Rd8 {[%clk 0:03:10]} 48. Be3 {[%clk 0:00:00]}  Nc3 {[%clk 0:03:26]} 49. Bh6 {[%clk 0:00:00]}  Rc8 {[%clk 0:03:26]} 50. Kg2 {[%clk 0:00:00]}  e5 {[%clk 0:01:14]} 51. Bd2 {[%clk 0:00:34]}  Ne4 {[%clk 0:01:14]} 52. Be3 {[%clk 0:00:29]}  f6 {[%clk 0:01:14]} 53. Rxb5 {[%clk 0:00:29]}  Rc7 {[%clk 0:01:14]} 54. Kf3 {[%clk 0:00:29]}  Nd6 {[%clk 0:01:14]} 55. Rb6 {[%clk 0:00:29]}  Rd7 {[%clk 0:01:14]} 56. Bc5 {[%clk 0:00:29]}  Ne8 {[%clk 0:01:14]} 57. g4 {[%clk 0:00:29]}  Kf7 {[%clk 0:01:14]} 58. Ke4 {[%clk 0:00:29]}  Ng7 {[%clk 0:01:14]} 59. g5 {[%clk 0:00:29]}  Nh5 {[%clk 0:00:46]} 60. Rc6 {[%clk 0:00:42]}  h6 {[%clk 0:00:46]} 61. gxh6 {[%clk 0:00:42]}  Kg8 {[%clk 0:00:46]} 62. Be3 {[%clk 0:00:42]}  Kh7 {[%clk 0:00:46]} 63. Re6 {[%clk 0:00:42]}  Rb7 {[%clk 0:00:46]} 64. Kf3 {[%clk 0:00:42]}  Rc7 {[%clk 0:00:46]} 65. Ke4 {[%clk 0:00:42]}  Rd7 {[%clk 0:00:46]} 66. Kf3 {[%clk 0:00:42]}  Rb7 {[%clk 0:00:46]} 67. Ke4 {[%clk 0:00:42]}  f5+ {[%clk 0:00:09]} 68. Kxe5 {[%clk 0:00:43]}  Rb5+ {[%clk 0:00:09]} 69. Kd6 {[%clk 0:00:43]}  f4 {[%clk 0:00:09]} 70. Bd4 {[%clk 0:00:43]}  Kxh6 {[%clk 0:00:09]} 71. Re8 {[%clk 0:00:43]}  g5 {[%clk 0:00:09]} 72. Rh8+ {[%clk 0:00:43]}  Kg6 {[%clk 0:00:09]} 73. Rg8+ {[%clk 0:00:43]}  Kf7 {[%clk 0:00:09]} 74. Rxg5 {[%clk 0:00:43]}  Rxg5 {[%clk 0:00:09]} 75. hxg5 {[%clk 0:00:43]}  Kg6 {[%clk 0:00:09]} 1/2-1/2


[Site "http://www.Chess.com"]

[Event "FIDE World Rapid Chess Championship 2021"]
[White "Paravyan, David"]
[Black "Indjic, Aleksandar"]
[WhiteFideId "4194985"]
[BlackFideId "911925"]
[WhiteElo "2671"]
[BlackElo "2544"]
[Result "1-0"]
[Round "09"]
[TimeControl "900+10"]
[Date "2021.12.27"]
[WhiteClock "0:07:18"]
[BlackClock "0:01:14"]

1. e4 {[%clk 0:15:00]}  e5 {[%clk 0:15:00]} 2. Nf3 {[%clk 0:15:00]}  Nf6 {[%clk 0:15:00]} 3. Nc3 {[%clk 0:15:00]}  Bb4 {[%clk 0:15:00]} 4. Nxe5 {[%clk 0:15:00]}  O-O {[%clk 0:15:00]} 5. Be2 {[%clk 0:15:00]}  Re8 {[%clk 0:15:00]} 6. Ng4 {[%clk 0:15:00]}  Nxe4 {[%clk 0:15:00]} 7. Nd5 {[%clk 0:16:03]}  Bf8 {[%clk 0:14:06]} 8. d3 {[%clk 0:16:03]}  Nc5 {[%clk 0:14:06]} 9. b4 {[%clk 0:14:26]}  Ne6 {[%clk 0:14:00]} 10. Bb2 {[%clk 0:14:26]}  Be7 {[%clk 0:14:00]} 11. O-O {[%clk 0:14:26]}  c6 {[%clk 0:14:00]} 12. Nxe7+ {[%clk 0:14:26]}  Qxe7 {[%clk 0:14:00]} 13. Qd2 {[%clk 0:14:26]}  f5 {[%clk 0:14:00]} 14. Ne3 {[%clk 0:11:58]}  f4 {[%clk 0:07:38]} 15. Nf5 {[%clk 0:11:58]}  Qf8 {[%clk 0:07:38]} 16. Bg4 {[%clk 0:11:58]}  d5 {[%clk 0:07:38]} 17. Rae1 {[%clk 0:11:58]}  Na6 {[%clk 0:07:38]} 18. Rxe6 {[%clk 0:11:58]}  Rxe6 {[%clk 0:07:38]} 19. Bxg7 {[%clk 0:11:58]}  Qxb4 {[%clk 0:06:29]} 20. Bc3 {[%clk 0:09:16]}  Qa3 {[%clk 0:06:29]} 21. Bd4 {[%clk 0:09:29]}  Rg6 {[%clk 0:03:49]} 22. Qxf4 {[%clk 0:07:37]}  Bxf5 {[%clk 0:00:17]} 23. Bxf5 {[%clk 0:07:37]}  Qd6 {[%clk 0:00:17]} 24. Be5 {[%clk 0:07:37]}  Qb4 {[%clk 0:00:17]} 25. Bxg6 {[%clk 0:07:37]}  Qxf4 {[%clk 0:00:17]} 26. Bxh7+ {[%clk 0:07:37]}  Kxh7 {[%clk 0:00:17]} 27. Bxf4 {[%clk 0:07:37]}  Re8 {[%clk 0:00:17]} 28. Rb1 {[%clk 0:07:37]}  b6 {[%clk 0:00:17]} 29. Kf1 {[%clk 0:07:37]}  Kg6 {[%clk 0:00:17]} 30. g3 {[%clk 0:07:37]}  Kf7 {[%clk 0:00:17]} 31. f3 {[%clk 0:08:12]}  Nc5 {[%clk 0:01:05]} 32. Kf2 {[%clk 0:08:12]}  Ne6 {[%clk 0:01:05]} 33. Be3 {[%clk 0:08:12]}  c5 {[%clk 0:01:05]} 34. h4 {[%clk 0:08:12]}  d4 {[%clk 0:01:05]} 35. Bd2 {[%clk 0:08:12]}  c4 {[%clk 0:01:05]} 36. dxc4 {[%clk 0:08:12]}  Rc8 {[%clk 0:01:14]} 37. Rb4 {[%clk 0:07:18]}  Nc5 {[%clk 0:01:14]} 38. Rb5 {[%clk 0:07:18]}  Ne6 {[%clk 0:01:14]} 1-0


[Site "http://www.Chess.com"]

[Event "FIDE World Rapid Chess Championship 2021"]
[White "Predke, Alexandr"]
[Black "Moroni, Luca Jr"]
[WhiteFideId "24107581"]
[BlackFideId "865834"]
[WhiteElo "2630"]
[BlackElo "2519"]
[Result "1-0"]
[Round "09"]
[TimeControl "900+10"]
[Date "2021.12.27"]
[WhiteClock "0:00:44"]
[BlackClock "0:00:01"]

1. d4 {[%clk 0:15:00]}  g6 {[%clk 0:15:00]} 2. e4 {[%clk 0:15:00]}  Bg7 {[%clk 0:15:00]} 3. Nc3 {[%clk 0:15:00]}  a6 {[%clk 0:15:00]} 4. f4 {[%clk 0:15:00]}  d5 {[%clk 0:15:00]} 5. Nxd5 {[%clk 0:15:00]}  e6 {[%clk 0:15:00]} 6. Ne3 {[%clk 0:15:00]}  Qxd4 {[%clk 0:15:00]} 7. Qxd4 {[%clk 0:15:00]}  Bxd4 {[%clk 0:15:00]} 8. Nf3 {[%clk 0:15:00]}  Bg7 {[%clk 0:14:56]} 9. e5 {[%clk 0:15:19]}  b6 {[%clk 0:14:56]} 10. a4 {[%clk 0:15:19]}  Bb7 {[%clk 0:14:56]} 11. a5 {[%clk 0:14:03]}  b5 {[%clk 0:13:52]} 12. c4 {[%clk 0:14:03]}  b4 {[%clk 0:11:29]} 13. Nc2 {[%clk 0:14:00]}  c5 {[%clk 0:11:06]} 14. Be3 {[%clk 0:11:47]}  Bf8 {[%clk 0:11:06]} 15. Nd2 {[%clk 0:11:47]}  Nh6 {[%clk 0:11:06]} 16. Nb3 {[%clk 0:11:47]}  Nd7 {[%clk 0:11:06]} 17. Rg1 {[%clk 0:11:05]}  Nf5 {[%clk 0:09:24]} 18. Bf2 {[%clk 0:08:19]}  h5 {[%clk 0:09:24]} 19. g3 {[%clk 0:08:19]}  g5 {[%clk 0:07:27]} 20. fxg5 {[%clk 0:08:03]}  Rc8 {[%clk 0:04:42]} 21. O-O-O {[%clk 0:04:19]}  Nxe5 {[%clk 0:05:34]} 22. h4 {[%clk 0:01:06]}  Ng4 {[%clk 0:06:14]} 23. Bg2 {[%clk 0:01:06]}  Bc6 {[%clk 0:06:14]} 24. Bxc6+ {[%clk 0:01:13]}  Rxc6 {[%clk 0:03:44]} 25. Rd2 {[%clk 0:01:13]}  Ne5 {[%clk 0:03:44]} 26. Re2 {[%clk 0:01:13]}  Nxc4 {[%clk 0:03:44]} 27. g4 {[%clk 0:01:13]}  hxg4 {[%clk 0:02:39]} 28. Rxg4 {[%clk 0:00:59]}  Ncd6 {[%clk 0:02:39]} 29. Nxc5 {[%clk 0:00:59]}  Nb5 {[%clk 0:02:39]} 30. Nb3 {[%clk 0:00:59]}  Be7 {[%clk 0:02:39]} 31. Kb1 {[%clk 0:00:59]}  O-O {[%clk 0:01:34]} 32. Nxb4 {[%clk 0:01:03]}  Bxb4 {[%clk 0:01:34]} 33. Rxb4 {[%clk 0:01:03]}  Rd8 {[%clk 0:01:34]} 34. Rd2 {[%clk 0:01:03]}  Rd5 {[%clk 0:01:34]} 35. h5 {[%clk 0:01:03]}  Ne7 {[%clk 0:01:34]} 36. Rxd5 {[%clk 0:01:03]}  Nxd5 {[%clk 0:01:34]} 37. Rg4 {[%clk 0:01:03]}  Nd6 {[%clk 0:00:31]} 38. Nc5 {[%clk 0:00:30]}  Nf5 {[%clk 0:00:31]} 39. Nd3 {[%clk 0:00:30]}  Rc8 {[%clk 0:00:31]} 40. g6 {[%clk 0:00:30]}  Nf6 {[%clk 0:00:31]} 41. gxf7+ {[%clk 0:00:30]}  Kxf7 {[%clk 0:00:31]} 42. Ne5+ {[%clk 0:00:30]}  Ke7 {[%clk 0:00:31]} 43. Rb4 {[%clk 0:00:23]}  Nxh5 {[%clk 0:00:14]} 44. Rb6 {[%clk 0:00:23]}  Nf6 {[%clk 0:00:14]} 45. Rxa6 {[%clk 0:00:23]}  Ne4 {[%clk 0:00:14]} 46. Be1 {[%clk 0:00:23]}  Kf6 {[%clk 0:00:14]} 47. Nd7+ {[%clk 0:00:23]}  Ke7 {[%clk 0:00:14]} 48. Ra7 {[%clk 0:00:23]}  Kd6 {[%clk 0:00:14]} 49. Nb6 {[%clk 0:00:23]}  Rh8 {[%clk 0:00:14]} 50. Ka2 {[%clk 0:00:23]}  Kc6 {[%clk 0:00:14]} 51. Nc4 {[%clk 0:00:23]}  Rh1 {[%clk 0:00:14]} 52. Bb4 {[%clk 0:00:23]}  Kb5 {[%clk 0:00:14]} 53. Nd2 {[%clk 0:00:23]}  Kxb4 {[%clk 0:00:14]} 54. Nxe4 {[%clk 0:00:23]}  Nd4 {[%clk 0:00:14]} 55. a6 {[%clk 0:00:23]}  Kb5 {[%clk 0:00:01]} 56. Nd6+ {[%clk 0:00:44]}  Kc6 {[%clk 0:00:01]} 57. Ra8 {[%clk 0:00:44]}  Kxd6 {[%clk 0:00:01]} 58. Rd8+ {[%clk 0:00:44]}  Kc7 {[%clk 0:00:01]} 59. a7 {[%clk 0:00:44]} 1-0


[Site "http://www.Chess.com"]

[Event "FIDE World Rapid Chess Championship 2021"]
[White "Maghsoodloo, Parham"]
[Black "Howell, David W L"]
[WhiteFideId "12539929"]
[BlackFideId "410608"]
[WhiteElo "2512"]
[BlackElo "2624"]
[Result "1-0"]
[Round "09"]
[TimeControl "900+10"]
[Date "2021.12.27"]
[WhiteClock "0:06:53"]
[BlackClock "0:00:23"]

1. d4 {[%clk 0:15:00]}  Nf6 {[%clk 0:15:00]} 2. c4 {[%clk 0:15:00]}  g6 {[%clk 0:15:00]} 3. Nc3 {[%clk 0:15:00]}  d5 {[%clk 0:15:00]} 4. Nf3 {[%clk 0:15:00]}  Bg7 {[%clk 0:15:00]} 5. h3 {[%clk 0:15:00]}  O-O {[%clk 0:15:00]} 6. cxd5 {[%clk 0:15:00]}  Nxd5 {[%clk 0:15:00]} 7. e4 {[%clk 0:15:00]}  Nxc3 {[%clk 0:15:00]} 8. bxc3 {[%clk 0:15:00]}  c5 {[%clk 0:15:00]} 9. Be2 {[%clk 0:15:28]}  b6 {[%clk 0:14:55]} 10. O-O {[%clk 0:15:28]}  Bb7 {[%clk 0:14:55]} 11. Qd3 {[%clk 0:15:28]}  cxd4 {[%clk 0:13:49]} 12. cxd4 {[%clk 0:15:33]}  Ba6 {[%clk 0:13:49]} 13. Qe3 {[%clk 0:15:33]}  Bxe2 {[%clk 0:13:49]} 14. Qxe2 {[%clk 0:15:33]}  Nc6 {[%clk 0:13:49]} 15. Bb2 {[%clk 0:15:59]}  Nxd4 {[%clk 0:08:16]} 16. Bxd4 {[%clk 0:14:24]}  Bxd4 {[%clk 0:06:33]} 17. Rad1 {[%clk 0:14:24]}  e5 {[%clk 0:06:33]} 18. Nxe5 {[%clk 0:14:24]}  Qc7 {[%clk 0:06:33]} 19. Nxf7 {[%clk 0:14:24]}  Bxf2+ {[%clk 0:06:33]} 20. Qxf2 {[%clk 0:14:24]}  Rxf7 {[%clk 0:06:33]} 21. Qxf7+ {[%clk 0:14:24]}  Qxf7 {[%clk 0:06:33]} 22. Rxf7 {[%clk 0:14:24]}  Kxf7 {[%clk 0:06:33]} 23. Rd7+ {[%clk 0:14:24]}  Kg8 {[%clk 0:05:05]} 24. Kf2 {[%clk 0:14:55]}  Rf8+ {[%clk 0:05:05]} 25. Ke3 {[%clk 0:14:55]}  Rf7 {[%clk 0:05:05]} 26. Rd8+ {[%clk 0:14:55]}  Kg7 {[%clk 0:05:05]} 27. e5 {[%clk 0:14:55]}  a5 {[%clk 0:05:05]} 28. g4 {[%clk 0:15:24]}  g5 {[%clk 0:03:06]} 29. e6 {[%clk 0:09:31]}  Re7 {[%clk 0:01:23]} 30. Rd6 {[%clk 0:08:59]}  Kf6 {[%clk 0:01:23]} 31. Rxb6 {[%clk 0:08:59]}  Ke5 {[%clk 0:01:23]} 32. Ra6 {[%clk 0:08:59]}  h6 {[%clk 0:01:23]} 33. a4 {[%clk 0:08:59]}  Kd5 {[%clk 0:01:23]} 34. Kd3 {[%clk 0:08:59]}  Rc7 {[%clk 0:00:14]} 35. Rxa5+ {[%clk 0:08:28]}  Kxe6 {[%clk 0:00:14]} 36. Kd4 {[%clk 0:08:28]}  Rd7+ {[%clk 0:00:23]} 37. Kc4 {[%clk 0:06:53]}  Kf6 {[%clk 0:00:23]} 38. Rf5+ {[%clk 0:06:53]}  Ke6 {[%clk 0:00:23]} 39. a5 {[%clk 0:06:53]}  Rd1 {[%clk 0:00:23]} 40. a6 {[%clk 0:06:53]}  Ra1 {[%clk 0:00:23]} 41. Kb5 {[%clk 0:06:53]}  Ra3 {[%clk 0:00:23]} 42. Kb6 {[%clk 0:06:53]} 1-0


[Site "http://www.Chess.com"]

[Event "FIDE World Rapid Chess Championship 2021"]
[White "Heimann, Andreas"]
[Black "Dudin, Gleb"]
[WhiteFideId "24624632"]
[BlackFideId "34184934"]
[WhiteElo "2616"]
[BlackElo "2247"]
[Result "1/2-1/2"]
[Round "09"]
[TimeControl "900+10"]
[Date "2021.12.27"]
[WhiteClock "0:01:43"]
[BlackClock "0:00:54"]

1. d4 {[%clk 0:15:00]}  d5 {[%clk 0:15:00]} 2. c4 {[%clk 0:15:00]}  c6 {[%clk 0:15:00]} 3. Nf3 {[%clk 0:15:00]}  Nf6 {[%clk 0:15:00]} 4. cxd5 {[%clk 0:15:00]}  cxd5 {[%clk 0:15:00]} 5. Nc3 {[%clk 0:15:00]}  Nc6 {[%clk 0:15:00]} 6. Bf4 {[%clk 0:15:00]}  Bf5 {[%clk 0:15:00]} 7. e3 {[%clk 0:15:00]}  a6 {[%clk 0:15:00]} 8. Be2 {[%clk 0:15:00]}  e6 {[%clk 0:15:37]} 9. O-O {[%clk 0:15:00]}  Be7 {[%clk 0:12:13]} 10. Rc1 {[%clk 0:15:20]}  O-O {[%clk 0:12:13]} 11. a3 {[%clk 0:15:20]}  Rc8 {[%clk 0:12:13]} 12. Na4 {[%clk 0:15:20]}  Ne4 {[%clk 0:11:23]} 13. Nd2 {[%clk 0:14:37]}  Nxd2 {[%clk 0:11:23]} 14. Qxd2 {[%clk 0:14:37]}  b5 {[%clk 0:11:23]} 15. Nc5 {[%clk 0:14:33]}  Na5 {[%clk 0:05:42]} 16. Nxa6 {[%clk 0:14:33]}  Nb3 {[%clk 0:05:42]} 17. Rxc8 {[%clk 0:12:33]}  Qxc8 {[%clk 0:05:27]} 18. Qc3 {[%clk 0:12:33]}  Qxc3 {[%clk 0:05:27]} 19. bxc3 {[%clk 0:12:33]}  Bxa3 {[%clk 0:05:27]} 20. Bxb5 {[%clk 0:12:33]}  Rc8 {[%clk 0:05:27]} 21. Nc7 {[%clk 0:12:33]}  Bb2 {[%clk 0:01:34]} 22. g4 {[%clk 0:11:42]}  Bc2 {[%clk 0:01:34]} 23. Bd7 {[%clk 0:11:42]}  Rd8 {[%clk 0:01:15]} 24. Ba4 {[%clk 0:03:42]}  Nxd4 {[%clk 0:01:15]} 25. cxd4 {[%clk 0:03:42]}  Bxa4 {[%clk 0:00:17]} 26. Rb1 {[%clk 0:03:42]}  Bc3 {[%clk 0:00:17]} 27. Na6 {[%clk 0:03:42]}  h6 {[%clk 0:00:17]} 28. Nc5 {[%clk 0:03:42]}  Ra8 {[%clk 0:00:17]} 29. Kg2 {[%clk 0:00:53]}  Bc2 {[%clk 0:00:52]} 30. Rb8+ {[%clk 0:00:53]}  Rxb8 {[%clk 0:00:52]} 31. Bxb8 {[%clk 0:00:53]}  Ba5 {[%clk 0:00:52]} 32. Bd6 {[%clk 0:00:53]}  Bd8 {[%clk 0:00:52]} 33. Kg3 {[%clk 0:00:53]}  g5 {[%clk 0:00:52]} 34. Nb7 {[%clk 0:00:53]}  Bf6 {[%clk 0:00:52]} 35. Nc5 {[%clk 0:00:53]}  Bd8 {[%clk 0:00:52]} 36. f3 {[%clk 0:00:53]}  Ba5 {[%clk 0:00:52]} 37. Kf2 {[%clk 0:00:53]}  Bd1 {[%clk 0:00:52]} 38. Be7 {[%clk 0:00:53]}  Bc7 {[%clk 0:00:49]} 39. h4 {[%clk 0:01:13]}  gxh4 {[%clk 0:00:49]} 40. Bxh4 {[%clk 0:01:13]}  Bd6 {[%clk 0:00:49]} 41. Nd7 {[%clk 0:01:13]}  Ba4 {[%clk 0:00:49]} 42. Nf6+ {[%clk 0:01:13]}  Kg7 {[%clk 0:00:49]} 43. Nh5+ {[%clk 0:01:13]}  Kg6 {[%clk 0:00:49]} 44. Bg3 {[%clk 0:01:13]}  Be7 {[%clk 0:00:49]} 45. Nf4+ {[%clk 0:01:13]}  Kg7 {[%clk 0:00:49]} 46. Nd3 {[%clk 0:01:13]}  Bb5 {[%clk 0:00:49]} 47. Nf4 {[%clk 0:01:13]}  Bc4 {[%clk 0:00:49]} 48. Kg2 {[%clk 0:01:13]}  Bb5 {[%clk 0:00:54]} 49. Be1 {[%clk 0:01:43]}  Bg5 {[%clk 0:00:54]} 50. Kg3 {[%clk 0:01:43]}  Bxf4+ {[%clk 0:00:54]} 51. Kxf4 {[%clk 0:01:43]}  f6 {[%clk 0:00:54]} 1/2-1/2


[Site "http://www.Chess.com"]

[Event "FIDE World Rapid Chess Championship 2021"]
[White "Erdos, Viktor"]
[Black "Puranik, Abhimanyu"]
[WhiteFideId "719978"]
[BlackFideId "5061245"]
[WhiteElo "2601"]
[BlackElo "2472"]
[Result "0-1"]
[Round "09"]
[TimeControl "900+10"]
[Date "2021.12.27"]
[WhiteClock "0:00:54"]
[BlackClock "0:00:42"]

1. e4 {[%clk 0:15:00]}  e5 {[%clk 0:15:00]} 2. Nf3 {[%clk 0:15:00]}  Nc6 {[%clk 0:15:00]} 3. Bc4 {[%clk 0:15:00]}  Bc5 {[%clk 0:15:00]} 4. c3 {[%clk 0:15:00]}  Nf6 {[%clk 0:15:00]} 5. d4 {[%clk 0:15:00]}  exd4 {[%clk 0:15:00]} 6. e5 {[%clk 0:15:00]}  d5 {[%clk 0:15:00]} 7. Bb5 {[%clk 0:15:00]}  Ne4 {[%clk 0:15:00]} 8. cxd4 {[%clk 0:15:00]}  Bb6 {[%clk 0:15:00]} 9. Nc3 {[%clk 0:15:00]}  O-O {[%clk 0:15:00]} 10. Be3 {[%clk 0:15:00]}  Bg4 {[%clk 0:15:00]} 11. h3 {[%clk 0:15:00]}  Bh5 {[%clk 0:15:00]} 12. Qc2 {[%clk 0:15:00]}  Nxc3 {[%clk 0:15:00]} 13. bxc3 {[%clk 0:15:00]}  f6 {[%clk 0:15:00]} 14. exf6 {[%clk 0:15:00]}  Qxf6 {[%clk 0:15:00]} 15. Be2 {[%clk 0:15:00]}  Bg6 {[%clk 0:15:00]} 16. Bd3 {[%clk 0:15:00]}  Bxd3 {[%clk 0:15:00]} 17. Qxd3 {[%clk 0:15:00]}  Qf5 {[%clk 0:15:00]} 18. Qxf5 {[%clk 0:15:00]}  Rxf5 {[%clk 0:15:00]} 19. a4 {[%clk 0:15:00]}  Na5 {[%clk 0:15:00]} 20. Ne5 {[%clk 0:15:00]}  c5 {[%clk 0:15:00]} 21. g4 {[%clk 0:15:00]}  cxd4 {[%clk 0:15:00]} 22. cxd4 {[%clk 0:15:00]}  Rff8 {[%clk 0:15:00]} 23. O-O {[%clk 0:15:00]}  Rfc8 {[%clk 0:15:00]} 24. Rfb1 {[%clk 0:00:00]}  Rc2 {[%clk 0:00:15]} 25. Rb5 {[%clk 0:00:00]}  Rd8 {[%clk 0:03:51]} 26. Re1 {[%clk 0:10:25]}  Nc6 {[%clk 0:10:12]} 27. Nxc6 {[%clk 0:08:35]}  bxc6 {[%clk 0:09:44]} 28. Rbb1 {[%clk 0:08:35]}  Rc4 {[%clk 0:09:44]} 29. Rec1 {[%clk 0:08:35]}  Rxa4 {[%clk 0:08:54]} 30. Rxc6 {[%clk 0:06:54]}  Rd7 {[%clk 0:08:54]} 31. Rc8+ {[%clk 0:03:27]}  Kf7 {[%clk 0:07:08]} 32. Rd1 {[%clk 0:03:27]}  Rc4 {[%clk 0:07:08]} 33. Rb8 {[%clk 0:03:27]}  Rdc7 {[%clk 0:04:55]} 34. Bf4 {[%clk 0:03:23]}  Re7 {[%clk 0:04:55]} 35. Be5 {[%clk 0:02:56]}  Bc7 {[%clk 0:04:55]} 36. Rb5 {[%clk 0:02:56]}  a6 {[%clk 0:02:24]} 37. Rxd5 {[%clk 0:01:10]}  Ke6 {[%clk 0:02:24]} 38. Bxc7 {[%clk 0:01:10]}  Kxd5 {[%clk 0:02:24]} 39. Be5 {[%clk 0:01:10]}  a5 {[%clk 0:02:24]} 40. Rb1 {[%clk 0:01:10]}  Ra7 {[%clk 0:02:24]} 41. Rb5+ {[%clk 0:01:10]}  Kc6 {[%clk 0:02:24]} 42. Rb8 {[%clk 0:01:10]}  a4 {[%clk 0:02:24]} 43. Rd8 {[%clk 0:01:10]}  Rd7 {[%clk 0:02:23]} 44. Rc8+ {[%clk 0:00:28]}  Kd5 {[%clk 0:02:23]} 45. Ra8 {[%clk 0:00:28]}  Rf7 {[%clk 0:02:23]} 46. Kg2 {[%clk 0:00:28]}  Ke4 {[%clk 0:02:23]} 47. Ra5 {[%clk 0:00:28]}  g6 {[%clk 0:02:23]} 48. h4 {[%clk 0:00:15]}  Rb4 {[%clk 0:01:30]} 49. h5 {[%clk 0:00:15]}  gxh5 {[%clk 0:01:30]} 50. gxh5 {[%clk 0:00:15]}  Rf5 {[%clk 0:01:30]} 51. Ra7 {[%clk 0:00:15]}  Rg5+ {[%clk 0:01:30]} 52. Kh3 {[%clk 0:00:15]}  h6 {[%clk 0:01:30]} 53. Ra6 {[%clk 0:00:15]}  Rxh5+ {[%clk 0:01:30]} 54. Kg2 {[%clk 0:00:15]}  Rg5+ {[%clk 0:01:30]} 55. Kh3 {[%clk 0:00:15]}  Rb1 {[%clk 0:01:30]} 56. Bg3 {[%clk 0:00:15]}  Ra1 {[%clk 0:01:30]} 57. Kg2 {[%clk 0:00:00]}  h5 {[%clk 0:00:40]} 58. Kh3 {[%clk 0:00:00]}  Kxd4 {[%clk 0:00:40]} 59. Bf4 {[%clk 0:00:00]}  Rf5 {[%clk 0:00:40]} 60. Bh6 {[%clk 0:00:00]}  Kc4 {[%clk 0:00:40]} 61. f4 {[%clk 0:00:00]}  Ra2 {[%clk 0:00:40]} 62. Bg5 {[%clk 0:00:00]}  Rb5 {[%clk 0:00:40]} 63. Kh4 {[%clk 0:00:00]}  Rh2+ {[%clk 0:00:40]} 64. Kg3 {[%clk 0:00:00]}  Ra2 {[%clk 0:00:40]} 65. Kh4 {[%clk 0:00:00]}  a3 {[%clk 0:00:40]} 66. Kxh5 {[%clk 0:00:00]}  Kb3 {[%clk 0:00:40]} 67. Kg6 {[%clk 0:00:00]}  Rf2 {[%clk 0:00:40]} 68. Be7 {[%clk 0:00:00]}  a2 {[%clk 0:00:40]} 69. Bd6 {[%clk 0:00:57]}  Kb2 {[%clk 0:00:36]} 70. Be5+ {[%clk 0:00:57]}  Kb1 {[%clk 0:00:36]} 71. Ra4 {[%clk 0:00:57]}  Re2 {[%clk 0:00:36]} 72. Kf6 {[%clk 0:00:57]}  Re3 {[%clk 0:00:36]} 73. Ra8 {[%clk 0:00:57]}  Rbb3 {[%clk 0:00:36]} 74. Bd4 {[%clk 0:00:57]}  Re4 {[%clk 0:00:36]} 75. Be5 {[%clk 0:00:57]}  Re2 {[%clk 0:00:36]} 76. Ra6 {[%clk 0:00:57]}  Rb4 {[%clk 0:00:36]} 77. Kf5 {[%clk 0:00:46]}  Kc1 {[%clk 0:00:24]} 78. Bc3 {[%clk 0:00:46]}  Rb3 {[%clk 0:00:24]} 79. Be5 {[%clk 0:00:46]}  Kd1 {[%clk 0:00:24]} 80. Ra5 {[%clk 0:00:46]}  Ke1 {[%clk 0:00:24]} 81. Kg4 {[%clk 0:00:46]}  Rg2+ {[%clk 0:00:24]} 82. Kf5 {[%clk 0:00:46]}  Re2 {[%clk 0:00:24]} 83. Kg4 {[%clk 0:00:46]}  Kf2 {[%clk 0:00:24]} 84. Bd4+ {[%clk 0:00:46]}  Kg2 {[%clk 0:00:24]} 85. Be5 {[%clk 0:00:46]}  Rb4 {[%clk 0:00:24]} 86. Kg5 {[%clk 0:00:46]}  Kf3 {[%clk 0:00:24]} 87. Kf5 {[%clk 0:00:46]}  Rb3 {[%clk 0:00:24]} 88. Ra4 {[%clk 0:00:54]}  Rh2 {[%clk 0:00:42]} 89. Kg5 {[%clk 0:00:54]}  Rg2+ {[%clk 0:00:42]} 90. Kf5 {[%clk 0:00:54]}  Ke3 {[%clk 0:00:42]} 91. Bd4+ {[%clk 0:00:54]}  Kd3 {[%clk 0:00:42]} 92. Be5 {[%clk 0:00:54]}  Rb5 {[%clk 0:00:42]} 93. Ra3+ {[%clk 0:00:54]}  Kc4 {[%clk 0:00:42]} 94. Ra4+ {[%clk 0:00:54]}  Kb3 {[%clk 0:00:42]} 95. Ra8 {[%clk 0:00:54]}  Re2 {[%clk 0:00:42]} 96. Ra6 {[%clk 0:00:54]}  Rb4 {[%clk 0:00:42]} 97. Ra7 {[%clk 0:00:54]}  Rxe5+ {[%clk 0:00:42]} 98. fxe5 {[%clk 0:00:54]}  Ra4 {[%clk 0:00:42]} 99. Rb7+ {[%clk 0:00:54]}  Ka3 {[%clk 0:00:42]} 0-1


[Site "http://www.Chess.com"]